Cogmind - Beta 13 @@@ ROGUE MODE // 2024.07.02 @ 21:13:31 Player: Cinder Result: Destroyed by as-97067 with Assembled Blade Performance ------------- Evolutions (0) 0 Regions Visited (2) 400 Robots Destroyed (7) 35 Value Destroyed (213) 213 Prototype IDs (0) 0 Alien Tech Used (0) 0 Bonus (0) 0 TOTAL SCORE: 648 Bonus ------- None Cogmind --------- Core Integrity 0/250 Matter 399/400 Energy 249/250 System Corruption 0% Temperature Cool (0) Movement Walking (120) Location -10/Mines Parts ------- > --- POWER (1) -------- Ion Engine > --- PROPULSION (2) --- Aluminum Leg Aluminum Leg > --- UTILITY (2) ------ Small Storage Unit Medium Matter Pod > --- WEAPON (2) ------- Light Assault Rifle > --- INVENTORY (8) ---- Light Ion Engine Aluminum Leg Aluminum Leg Peak State ------------ > --- POWER ------------ Light Ion Engine > --- PROPULSION ------- Light Treads Light Treads > --- UTILITY ---------- Small Storage Unit Propulsion Shielding > --- WEAPON ----------- Medium Laser Particle Gun > --- INVENTORY -------- Ion Engine Aluminum Leg Aluminum Leg Aluminum Leg Medium Matter Pod Light Assault Rifle [Rating: 8] Favorites ----------- Power Ion Engine Engine Ion Engine Propulsion Aluminum Leg Treads Light Treads Leg Aluminum Leg Utility Small Storage Unit Storage Small Storage Unit Protection Propulsion Shielding Weapon Medium Laser Energy Gun Medium Laser Ballistic Gun Assault Rifle Build | -11 -10 -10 ------- Run | Yrd Mat Min Slots Evolved . | . . . Power . | . . . Propulsion . | . . . Utility . | . . . Weapon . | . . . Parts Attached 17 | 6 2 9 Power 4 | 1 1 2 Engine 4 | 1 1 2 Core . | . . . Reactor . | . . . Propulsion 6 | 2 . 4 Treads 2 | 2 . . Leg 4 | . . 4 Wheel . | . . . Hover . | . . . Flight . | . . . Utility 3 | 1 1 1 Device . | . . . Storage 2 | 1 . 1 Processor . | . . . Hackware . | . . . Protection 1 | . 1 . Artifact . | . . . Weapon 4 | 2 . 2 Energy Gun 2 | 1 . 1 Energy Cannon . | . . . Ballistic Gun 2 | 1 . 1 Ballistic Cannon . | . . . Launcher . | . . . Special Weapon . | . . . Impact Weapon . | . . . Slashing Weapon . | . . . Piercing Weapon . | . . . Special Melee Weapon . | . . . Unidentified Prototypes . | . . . Parts Lost 5 | . 1 4 Power 1 | . 1 . Propulsion . | . . . Utility 1 | . . 1 Weapon 3 | . . 3 Highest Loss Streak 2 | . 1 2 To Critical Strikes . | . . . Average Slot Usage (%) 91 | . 88 93 Engine 12 | . 10 14 Treads 12 | . 28 2 Leg 15 | . . 25 Storage 17 | . 14 20 Protection 6 | . 7 6 Energy Gun 15 | . 14 15 Ballistic Gun 9 | . 14 7 Naked Turns . | . . . Heaviest Build 16 | 12 13 16 Greatest Support 40 | 40 40 40 Greatest Overweight (x) 2 | 2 . 1 Average Overweight (x) . | . . . Largest Inventory Capacity 8 | 8 8 8 Average Capacity 7 | 6 8 8 Most Carried 8 | 5 8 7 Average Carried 4 | 3 5 4 Final Capacity 8 | 8 8 8 Final Carried 7 | 4 7 3 Class Distribution -------------------- 100% | Mutant Dominant Class ---------------- Mutant | -10/Materials Mutant | -10/Mines Resources | -11 -10 -10 ----------- Run | Yrd Mat Min Matter Collected 519 | 183 216 120 Remotely . | . . . Salvage Created 331 | . 159 172 Parts 22 | . 18 4 Haulers Intercepted . | . . . Recyclers Shooed . | . . . Parts Field Recycled . | . . . Retrieved Matter . | . . . Parts Self-Destructed . | . . . Prevented . | . . . Kills | -11 -10 -10 ------- Run | Yrd Mat Min Combat Hostiles Destroyed 10 | . 3 7 Guns 10 | . 3 7 Classes Destroyed 4 | . 3 1 Worker 1 | . 1 . Watcher 1 | . 1 . Grunt 5 | . 3 2 Assembled 5 | . . 5 Best Kill Streak 4 | . 4 3 Combat Bots Only 3 | . 2 3 Max Kills in Single Turn 1 | . 1 1 Gunslinging . | . . . Exploded . | . . . Melee . | . . . Uniques/NPCs Destroyed . | . . . Combat | -11 -10 -10 -------- Run | Yrd Mat Min Hostile Shots Fired 102 | . 33 69 Missed 23 | . 7 16 Damage Taken 1069 | . 318 751 Core 271 | . 57 214 Absorbed by Shields . | . . . Redirected to Shielding 51 | . 29 22 Core Remaining (%) 100 | 100 . . Volleys Fired 48 | . 12 36 Largest 2 | . 2 2 Hottest 115 | . 70 115 Shots Fired 87 | . 24 63 Gun 87 | . 24 63 Cannon . | . . . Launcher . | . . . Special . | . . . Kinetic 32 | . 12 20 Thermal 55 | . 12 43 Explosive . | . . . Electromagnetic . | . . . Robot Hit Streak 7 | . 6 7 Robot Miss Streak 3 | . 1 3 Penetration Max . | . . . Secondary Targets 2 | . 1 1 Max Gunslinging Chain 1 | . 1 1 Shots Hit Robots 51 | . 16 35 Core Hits 25 | . 9 16 Critical Kills . | . . . Critical Parts Destroyed . | . . . Critical Strikes 1 | . . 1 Burn 1 | . . 1 Melee Attacks . | . . . Impact . | . . . Slashing . | . . . Piercing . | . . . Sneak Attacks . | . . . Combat Hostiles . | . . . Follow-up Attacks . | . . . Damage Inflicted 601 | . 198 403 Guns 601 | . 198 403 Cannons . | . . . Explosions . | . . . Melee . | . . . Ramming . | . . . Kinetic 226 | . 122 104 Thermal 375 | . 76 299 Explosive . | . . . Electromagnetic . | . . . Impact . | . . . Slashing . | . . . Piercing . | . . . Highest Corruption . | . . . Average Corruption . | . . . Corruption Purged . | . . . Corruption Blocked . | . . . Overload Shots . | . . . Overflow Damage . | . . . Projectiles . | . . . Explosions . | . . . Melee . | . . . Knockbacks . | . . . Impact . | . . . Kinetic . | . . . Secondary . | . . . Self-Inflicted Damage . | . . . Shots . | . . . Rammed . | . . . Targets Rammed . | . . . Kicked . | . . . Crushed . | . . . Highest Temperature 489 | . 75 489 Average Temperature 153 | . 39 184 Received Heat Transfer 511 | . 177 334 Effects 7 | . . 7 Shutdowns 3 | . . 3 Interference 2 | . . 2 Short Circuit 1 | . . 1 Damage (minor) 1 | . . 1 Siege Activations . | . . . Robots Corrupted . | . . . Combat Hostiles . | . . . Parts Fried . | . . . Impact Corruptions . | . . . Robots Melted . | . . . Combat Hostiles . | . . . Parts Melted 2 | . . 2 Heat Transferred 1110 | . 222 888 Parts Sabotaged . | . . . Parts Stolen . | . . . Parts Stripped . | . . . Power Chain Reactions . | . . . Alert | -11 -10 -10 ------- Run | Yrd Mat Min Peak Influence 72 | . 72 67 Initial 27 | . . 27 Average 39 | . 31 51 Maximum Alert Level . | . . . Low Security (%) 100 | 100 100 100 Level 1 . | . . . Level 2 . | . . . Level 3 . | . . . Level 4 . | . . . Level 5 . | . . . High Security . | . . . Max Security . | . . . Squads Dispatched . | . . . Investigation . | . . . Extermination . | . . . Reinforcement . | . . . Assault . | . . . Garrison . | . . . Intercept . | . . . Searches Triggered . | . . . Construction Impeded . | . . . Haulers Reinforced . | . . . Active Scanning Responses . | . . . Cargo Convoy Interrupts . | . . . Stealth | -11 -10 -10 --------- Run | Yrd Mat Min Distress Signals 2 | . 1 1 Communications Jammed . | . . . Distress Signals . | . . . Times Spotted 20 | . 7 13 Peak Tracking Total 4 | . 4 3 Tactical Retreats 2 | . . 2 Traps | -11 -10 -10 ------- Run | Yrd Mat Min Traps Triggered . | . . . Indirectly . | . . . Trap Hack Attempts . | . . . Triggered . | . . . Disarmed . | . . . Reprogrammed . | . . . Reused . | . . . Traps Extracted . | . . . Installed . | . . . Triggered . | . . . Machines | -11 -10 -10 ---------- Run | Yrd Mat Min Machines Disabled . | . . . Max in Single Turn . | . . . Machines Repaired . | . . . Machines Dismantled . | . . . Machines Sabotaged . | . . . Overloaded Fab Kills . | . . . Hacking | -11 -10 -10 --------- Run | Yrd Mat Min Machines Accessed . | . . . Terminals . | . . . Fabricators . | . . . Repair Stations . | . . . Recycling Units . | . . . Scanalyzers . | . . . Garrison Access . | . . . Total Hacks . | . . . Successful . | . . . Failed . | . . . Catastrophic . | . . . Database Lockouts . | . . . Manual . | . . . Terminals . | . . . Fabricators . | . . . Repair Stations . | . . . Recycling Units . | . . . Scanalyzers . | . . . Garrison Access . | . . . Terminal Hacks . | . . . Fabricator Hacks . | . . . Repair Station Hacks . | . . . Recycling Unit Hacks . | . . . Scanalyzer . | . . . Garrison Access Hacks . | . . . Unauthorized Hacks . | . . . Terminals . | . . . Fabricators . | . . . Repair Stations . | . . . Recycling Units . | . . . Scanalyzers . | . . . Garrison Access . | . . . Data Cores Recovered . | . . . Used . | . . . Hacking Detections . | . . . Full Trace Events . | . . . Feedback Events . | . . . Feedback Blocked . | . . . Robot Schematics Acquired . | . . . Robots Built . | . . . Authchips . | . . . Time . | . . . Total Robot Build Rating . | . . . Part Schematics Acquired . | . . . Parts Built . | . . . Authchips . | . . . Time . | . . . Total Part Build Rating . | . . . Parts Repaired . | . . . Time . | . . . Parts Recycled . | . . . Recycled Matter . | . . . Retrieved Matter . | . . . Retrieved Components . | . . . Parts Scanalyzed . | . . . Part Schematics Acquired . | . . . Parts Damaged . | . . . Bothacking | -11 -10 -10 ------------ Run | Yrd Mat Min Used RIF Installer . | . . . Robots Hacked . | . . . Non-combat . | . . . Combat . | . . . Robot Hacks Applied . | . . . Relay Couplers Released . | . . . Fabnet Peak Effective % . | . . . Robots Rewired . | . . . Allies Hacked . | . . . Hacks Repelled . | . . . Allies | -11 -10 -10 -------- Run | Yrd Mat Min Total Allies . | . . . Largest Group . | . . . Highest-Rated Group . | . . . Highest-Rated Ally . | . . . Total Orders . | . . . Ally Attacks . | . . . Total Damage . | . . . Kills . | . . . Allies Corrupted . | . . . Allies Melted . | . . . Intel | -11 -10 -10 ------- Run | Yrd Mat Min Robot Analysis Total . | . . . Derelict Logs Recovered 2 | . . 2 Drone Launches . | . . . Drone Recoveries . | . . . Exploration | -11 -10 -10 ------------- Run | Yrd Mat Min Turns Passed 586 | 67 198 321 Spaces Moved 299 | 46 96 157 Core 22 | 22 . . Treads 123 | 24 96 3 Legs 154 | . . 154 Wheels . | . . . Hover . | . . . Flight . | . . . Fastest Speed 50 | 50 160 120 Average Speed 132 | 115 160 121 Slowest Speed 190 | 160 160 190 Overloaded Moves . | . . . Propulsion Burnouts . | . . . Robots Hopped . | . . . Cave-ins Triggered . | . . . Exploration Rate (%) 16 | 4 18 26 Regions Visited 2 Branch Regions 1 Pre-discovered Areas 2 | . . 2 Known Exits Taken . | . . . Unknown Exits Taken 2 | 1 1 . Scrap Searched 1 | . . 1 Spaces Dug . | . . . Terrain Destroyed . | . . . Melee . | . . . Projectile . | . . . AOE . | . . . Terrain Rammed . | . . . Walls Destroyed . | . . . Machines Disabled . | . . . Actions | -11 -10 -10 --------- Run | Yrd Mat Min Total 404 | 59 117 228 Wait 21 | 1 3 17 Move 297 | 45 95 157 Hop . | . . . Pick Up 16 | 7 5 4 Fast Attach 3 | 3 . . Attach 8 | 3 2 3 Detach . | . . . Swap 6 | . . 6 Drop 5 | . . 5 Fire 48 | . 12 36 Melee . | . . . Ram . | . . . Kick . | . . . Crush . | . . . Escape Stasis . | . . . Rewire . | . . . Trap . | . . . Miscellaneous . | . . . Route ------- -11/Scrapyard -10/Materials -10/Mines History --------- Turn | Location | Event 9 | -11/Scrapyard | Discovered new exit (range 16) 68 | -11/Scrapyard | Entered Materials 247 | -10/Materials | Discovered new exit (range 12) 266 | -10/Materials | Entered Mines 267 | -10/Mines | Assembled infested the area 316 | -10/Mines | Learned location of Zion (-7) 331 | -10/Mines | Build established: Mutant 332 | -10/Mines | Learned location of Storage (-8) 410 | -10/Mines | Core integrity fell below 50% 491 | -10/Mines | Core integrity fell below 20% 587 | -10/Mines | Destroyed by as-97067 with Assembled Blade Last Messages --------------- 00437_ Destroyed Asb. F-torch. 00437_ as-84833 destroyed. 00442_ Acquired 16 matter. 00444_ Power failure, Ion Engine shutdown. 00445_ Aluminum Leg broken. 00445_ Overheating: Short circuit. 00449_ R-06 Scavenger destroyed. 00450_ Acquired 10 matter. 00468_ Acquired 1 matter. 00469_ Dropped Broken Aluminum Leg. 00472_ Acquired 9 matter. 00474_ Acquired 1 matter. 00486_ Med. Laser destroyed. 00488_ Acquired 1 matter. 00494_ as-37971 destroyed. 00495_ Acquired 1 matter. 00497_ Acquired 10 matter. 00497_ Dropped Ion Engine. 00499_ Acquired Lgt. Ion Engine. 00575_ Acquired 10 matter. Map ----- +----------------------------------------------------+ | | | | | | | | | | | ?????????????????????????????????????????????????? | | ?????????????????????????????????????????????????? | | ?????????????????????????????????????????????????? | | ?????????????????????????????????????????????????? | | ?????????????????????????????????????????????????? | | ?????????????????????????????????????????????????? | | ?????????????????????????????????????????????????? | | ?????????????????????????????????????????????????? | | ?????????????????????????????????????????????????? | | ?????????????????????????????????????????????????? | | ???????????#?????????????????????????????????????? | | ?????????## ????????????????????????????????????? | | ???????# ???????????????????????????????????? | | ??????# ???????????????????????????????????? | | ??????# #?????????###??????????????????????? | | ??????# ###?????? ##?????????????????????? | | ???????# ##????#t #?????????????????????? | | ???????# ##???# #?????????????????????? | | ????????# ##??# #?????????????????????? | | ???#?????# ##?# #?????????????????????? | | ??## ??????# ###@ #?????????????????????? | | ??# ??????# a #?????????????????????? | | ??# ??????# a #?????????????????????? | | ??# ?????## #######?????????????????????? | | ??# ?????### ####???????????????????????????? | | ??# ??????#%#??????????????????????????????? | | ???# #?????# #??????????????????????????????? | | #### ! ##???# #??????????????????????????????? | | % = %%% ##?# #??????????????????????????????? | | * % ! ### ########???????????????????????? | | ??????# %%= #???????????????????????? | | ??????## =######### #???????????????????????? | | ???????## ##???????# #???????????????????????? | | ????????## ###????????# #???????????????????????? | | ?????????###????###????# #???????????????????????? | | ???????????????# ###### ####????????????????????? | | ??????????????# ## #????????????????????? | | ?????????????? ## """ #????????????????????? | | ?????????????# ##= """ #????????????????????? | | ????????????# ##*! """ #????????????????????? | | ????######## #?#=% #????????????????????? | | ???## ## #????##### ###????????????????????? | | ???# #??????????# #??????????????????????? | | ???# !* = ##??????????# #??????????????????????? | | ???## = ############# #??????????????????????? | +----------------------------------------------------+ Best States ------------- Heat Dissipation 25 Energy Generation 10 Energy Capacity 250 Matter Stores 400 Matter Capacity 400 Sight Range 16 Terrain Scan Density 10 Propulsion Shielding 33 Evasion (%) 55 Recoil Reduction 2 Item Schematics ----------------- None Robot Schematics ------------------ None Fabricated ------------ Nothing Alien Tech Used ----------------- None Achievements -------------- None Challenges ------------ None Game ------ Seed AssemblySuspensionSword Manual? 0 Play Time 00:07:25 Cumulative 10.8 hours Start 2024.07.02 @ 21:03:30 End 2024.07.02 @ 21:13:31 Sessions 1 Manual Loads 0 Difficulty Rogue Special Mode None Game No. 25 Rogue 25 Adventurer 0 Explorer 0 Win Type - Total 0 Types 0/0/0/0/0/0/0/0/0 Lore% 13 Gallery% 18 Achievement% 13 Wizard Run 0 Options --------- Layout 1 ASCII 0 Keyboard 0 Movement Mouse Keybinds 0 Fullscreen 1 Font 24/Smallcaps Map View 50x40 Zoom Use 0% Tactical HUD 1 Map Filters NONE Filters NONE Steam 1 RUN: f3cfdcaa-4555-4aa1-8225-b0a565fff309